{"text_format":"1","workbook":"xlsx","n_sheets":3,"sheets":["Бланк Методички","Обработка результатов","Печать"],"not_rendered":{"charts":0,"images":1,"macros":1,"external_links":0,"defined_names":2,"comments":0,"pivot_tables":0},"unopened":[],"bounds":{"document_bytes":16777216,"sheet_cells":100000,"rows_first":2000,"rows_last":500,"rows_between":2000,"halvings":0,"cell_chars":16384,"cell_head_chars":4096},"cells_cut":0,"cells_raw":0,"read":"whole","date_system":"1900"}

{"sheet":"Бланк Методички","index":0,"n_rows":154,"n_cols":34,"rows_kept":154,"cut":false,"hidden":false,"merged":[[152,11,152,14],[153,11,153,14],[147,11,147,14],[148,11,148,14],[149,11,149,14],[150,11,150,14],[151,11,151,14],[142,11,142,14],[143,11,143,14],[144,11,144,14],[145,11,145,14],[146,11,146,14],[137,11,137,14],[138,11,138,14],[139,11,139,14],[140,11,140,14],[141,11,141,14],[132,11,132,14],[133,11,133,14],[134,11,134,14],[135,11,135,14],[136,11,136,14],[127,11,127,14],[128,11,128,14],[129,11,129,14],[130,11,130,14],[131,11,131,14],[122,11,122,14],[123,11,123,14],[124,11,124,14],[125,11,125,14],[126,11,126,14],[117,11,117,14],[118,11,118,14],[119,11,119,14],[120,11,120,14],[121,11,121,14],[112,11,112,14],[113,11,113,14],[114,11,114,14],[115,11,115,14],[116,11,116,14],[107,11,107,14],[108,11,108,14],[109,11,109,14],[110,11,110,14],[111,11,111,14],[102,11,102,14],[103,11,103,14],[104,11,104,14],[105,11,105,14],[106,11,106,14],[97,11,97,14],[98,11,98,14],[99,11,99,14],[100,11,100,14],[101,11,101,14],[92,11,92,14],[93,11,93,14],[94,11,94,14],[95,11,95,14],[96,11,96,14],[87,11,87,14],[88,11,88,14],[89,11,89,14],[90,11,90,14],[91,11,91,14],[82,11,82,14],[83,11,83,14],[84,11,84,14],[85,11,85,14],[86,11,86,14],[77,11,77,14],[78,11,78,14],[79,11,79,14],[80,11,80,14],[81,11,81,14],[72,11,72,14],[73,11,73,14],[74,11,74,14],[75,11,75,14],[76,11,76,14],[67,11,67,14],[68,11,68,14],[69,11,69,14],[70,11,70,14],[71,11,71,14],[62,11,62,14],[63,11,63,14],[64,11,64,14],[65,11,65,14],[66,11,66,14],[152,1,152,10],[153,1,153,10],[51,1,51,10],[50,1,50,10],[50,11,50,14],[51,11,51,14],[52,11,52,14],[53,11,53,14],[54,11,54,14],[55,11,55,14],[56,11,56,14],[57,11,57,14],[58,11,58,14],[59,11,59,14],[60,11,60,14],[61,11,61,14],[147,1,147,10],[148,1,148,10],[149,1,149,10],[150,1,150,10],[151,1,151,10],[142,1,142,10],[143,1,143,10],[144,1,144,10],[145,1,145,10],[146,1,146,10],[137,1,137,10],[138,1,138,10],[139,1,139,10],[140,1,140,10],[141,1,141,10],[132,1,132,10],[133,1,133,10],[134,1,134,10],[135,1,135,10],[136,1,136,10],[127,1,127,10],[128,1,128,10],[129,1,129,10],[130,1,130,10],[131,1,131,10],[122,1,122,10],[123,1,123,10],[124,1,124,10],[125,1,125,10],[126,1,126,10],[117,1,117,10],[118,1,118,10],[119,1,119,10],[120,1,120,10],[121,1,121,10],[112,1,112,10],[113,1,113,10],[114,1,114,10],[115,1,115,10],[116,1,116,10],[107,1,107,10],[108,1,108,10],[109,1,109,10],[110,1,110,10],[111,1,111,10],[102,1,102,10],[103,1,103,10],[104,1,104,10],[105,1,105,10],[106,1,106,10],[97,1,97,10],[98,1,98,10],[99,1,99,10],[100,1,100,10],[101,1,101,10],[92,1,92,10],[93,1,93,10],[94,1,94,10],[95,1,95,10],[96,1,96,10],[87,1,87,10],[88,1,88,10],[89,1,89,10],[90,1,90,10],[91,1,91,10],[82,1,82,10],[83,1,83,10],[84,1,84,10],[85,1,85,10],[86,1,86,10],[77,1,77,10],[78,1,78,10],[79,1,79,10],[80,1,80,10],[81,1,81,10],[72,1,72,10],[73,1,73,10],[74,1,74,10],[75,1,75,10],[76,1,76,10],[67,1,67,10],[68,1,68,10],[69,1,69,10],[70,1,70,10],[71,1,71,10],[62,1,62,10],[63,1,63,10],[64,1,64,10],[65,1,65,10],[66,1,66,10],[57,1,57,10],[58,1,58,10],[59,1,59,10],[60,1,60,10],[61,1,61,10],[52,1,52,10],[53,1,53,10],[54,1,54,10],[55,1,55,10],[56,1,56,10],[47,11,47,14],[48,11,48,14],[49,11,49,14],[42,11,42,14],[43,11,43,14],[44,11,44,14],[45,11,45,14],[46,11,46,14],[37,11,37,14],[38,11,38,14],[39,11,39,14],[40,11,40,14],[41,11,41,14],[32,11,32,14],[33,11,33,14],[34,11,34,14],[35,11,35,14],[36,11,36,14],[27,11,27,14],[28,11,28,14],[29,11,29,14],[30,11,30,14],[31,11,31,14],[22,11,22,14],[23,11,23,14],[24,11,24,14],[25,11,25,14],[26,11,26,14],[17,11,17,14],[18,11,18,14],[19,11,19,14],[20,11,20,14],[21,11,21,14],[17,1,17,10],[18,1,18,10],[19,1,19,10],[20,1,20,10],[21,1,21,10],[41,1,41,10],[30,1,30,10],[31,1,31,10],[32,1,32,10],[33,1,33,10],[34,1,34,10],[35,1,35,10],[42,1,42,10],[43,1,43,10],[44,1,44,10],[45,1,45,10],[46,1,46,10],[22,1,22,10],[47,1,47,10],[48,1,48,10],[49,1,49,10],[38,1,38,10],[39,1,39,10],[40,1,40,10],[36,1,36,10],[37,1,37,10],[26,1,26,10],[27,1,27,10],[28,1,28,10],[29,1,29,10],[23,1,23,10],[24,1,24,10],[25,1,25,10],[16,1,16,10],[4,0,7,14],[12,1,12,10],[11,1,11,10],[10,1,10,10],[13,1,13,10],[10,11,10,14],[11,11,11,14],[12,11,12,14],[13,11,13,14],[14,11,14,14],[15,11,15,14],[16,11,16,14],[2,15,2,18],[1,10,1,11],[1,12,1,14],[1,0,1,2],[1,3,1,8],[2,0,2,2],[2,3,2,8],[14,1,14,10],[15,1,15,10]]}
[null,null,null,null,null,null,null,null,null,null,null,null,null,null,null,null,null,null,null,null,null,null,null,null,null,null,null,null,null,null,null,null,10,"5 А"]
["Фамилия, имя",null,null,null,null,null,null,null,null,null,"Класс",null,null,null,null,null,null,null,null,null,null,null,null,null,null,null,null,null,null,null,null,null,11,"5 Б"]
["Возраст",null,null,null,null,null,null,null,null,null,null,null,null,null,null,null,null,null,null,null,null,null,null,null,null,null,null,null,null,null,null,null,12,"5 В"]
[null,null,null,null,null,null,null,null,null,null,null,null,null,null,null,null,null,null,null,null,null,null,null,null,null,null,null,null,null,null,null,null,13]
["Для того чтобы помочь вам выбрать профессию, предлагаем перечень вопросов. Подумайте перед тем, как ответить на каждый вопрос, постарайтесь дать как можно более точный ответ.\nВ зависимости от привлекательности содержания приведенных ниже фраз отметьте один из четырёх пунктов по принципу по принципу: \"Очень нравится\", \"Нравится\", \"Сомневаюсь\", \"Не нравится\", \"Очень не нравится\".",null,null,null,null,null,null,null,null,null,null,null,null,null,null,null,null,null,null,null,null,null,null,null,null,null,null,null,null,null,null,"Мальчик",14]
[null,null,null,null,null,null,null,null,null,null,null,null,null,null,null,null,null,null,null,null,null,null,null,null,null,null,null,null,null,null,null,"Девочка",15]
[null,null,null,null,null,null,null,null,null,null,null,null,null,null,null,null,null,null,null,null,null,null,null,null,null,null,null,null,null,null,null,null,16]
[]
[]
[]
[1,"Уроки по физике.",null,null,null,null,null,null,null,null,null,null,null,null,null,null,null,null,null,null,null,null,null,null,"Очень нравится"]
[2,"Уроки по математике.",null,null,null,null,null,null,null,null,null,null,null,null,null,null,null,null,null,null,null,null,null,null,"Нравится"]
[3,"Уроки по химии.",null,null,null,null,null,null,null,null,null,null,null,null,null,null,null,null,null,null,null,null,null,null,"Сомневаюсь"]
[4,"Читать книги или статьи по астрономии.",null,null,null,null,null,null,null,null,null,null,null,null,null,null,null,null,null,null,null,null,null,null,"Не нравится"]
[5,"Читать об опытах и животных.",null,null,null,null,null,null,null,null,null,null,null,null,null,null,null,null,null,null,null,null,null,null,"Очень не нравится"]
[6,"Читать о жизни и работе врачей."]
[7,"Читать о сельском хозяйстве, о растениях и животных."]
[8,"Читать о лесе."]
[9,"Читать произведения классиков мировой литературы."]
[10,"Читать газеты, журналы, слушать радио, смотреть телевизор."]
[11,"Уроки истории."]
[12,"Посещать театры, музеи, художественные выставки."]
[13,"Читать литературу о геологических экспедициях."]
[14,"Читать о различных странах, их экономике, государственном устройстве."]
[15,"Организовывать товарищей на выполнение общественной работы и руководить ими."]
[16,"Читать о работе милиции."]
[17,"Читать о моряках, летчиках."]
[18,"Читать о работе воспитателя."]
[19,"Знакомиться с устройством и работой станков."]
[20,"Готовить обеды."]
[21,"Читать о строителях."]
[22,"Заботиться о красоте помещения, в котором вы учитесь, живете, работаете."]
[23,"Читать о достижениях техники (например, журналы, посвященные технике и т.д.)."]
[24,"Знакомиться с устройством бытовых электро-и радиоприборов."]
[25,"Читать научно-популярную литературу об открытиях и физике."]
[26,"Читать научно-популярную литературу о математике."]
[27,"Узнавать о новых достижениях в области химии (из журналов, радио-и телепередач и т. д.)."]
[28,"Смотреть телепередачи о космонавтах."]
[29,"Изучать биологию."]
[30,"Интересоваться причинами и способами лечения болезней."]
[31,"Изучать ботанику."]
[32,"Проводить время в лесу."]
[33,"Читать литературно-критические статьи."]
[34,"Активно участвовать в общественной жизни."]
[35,"Читать книги об исторических событиях."]
[36,"Слушать симфоническую музыку."]
[37,"Узнавать об открытиях новых месторождений полезных ископаемых."]
[38,"Узнавать о географических открытиях."]
[39,"Обсуждать текущие дела и события."]
[40,"Устанавливать дисциплину среди сверстников или младших."]
[41,"Путешествовать по стране."]
[42,"Давать объяснения товарищам, как решить трудную задачу, правильно написать предложение и др."]
[43,"Знакомиться с различными инструментами."]
[44,"Уроки домоводства."]
[45,"Узнавать о новых достижениях в области строительства."]
[46,"Посещать фабрики."]
[47,"Знакомиться с устройством механизмов, машин."]
[48,"Читать статьи в научно-популярных журналах о достижениях в области радиотехники."]
[49,"Разбираться в теории физических явлений."]
[50,"Решать сложные математические задачи."]
[51,"Ставить опыты по химии, следить за ходом химических реакций."]
[52,"Наблюдать за небесными светилами."]
[53,"Вести наблюдения за растениями."]
[54,"Делать перевязки, оказывать первую помощь при ушибах и т.д."]
[55,"Выращивать животных и ухаживать за ними."]
[56,"Собирать гербарий."]
[57,"Писать рассказы и стихи."]
[58,"Наблюдать за поведением и жизнью людей."]
[59,"Принимать участие в работе исторического кружка, разыскивать материалы, свидетельствующие о событиях прошлого."]
[60,"Декламировать, петь в хоре, выступать на сцене."]
[61,"Собирать минералы, интересоваться их происхождением."]
[62,"Изучать природу родного края."]
[63,"Организовывать общественные мероприятия в школе."]
[64,"Обращать особое внимание на поведение людей."]
[65,"Посещать кружок автолюбителей, обслуживать автомобиль."]
[66,"Проводить время с маленькими детьми (читать им книги, что-нибудь рассказывать, помогать чем-либо)."]
[67,"Изготавливать различные детали и предметы."]
[68,"Организовывать питание во время походов."]
[69,"Бывать на стройках."]
[70,"Шить одежду."]
[71,"Собиратьи ремонтировать механизмы велосипедов, швейных машин, часов и т.п."]
[72,"Ремонтировать бытовые электро-и радиоприборы."]
[73,"Заниматься в физическом кружке."]
[74,"Заниматься в математическом кружке."]
[75,"Готовить растворы, взвешивать реактивы."]
[76,"Посещать планетарий."]
[77,"Посещать кружок биологии."]
[78,"Наблюдать за больными, оказывать им помощь."]
[79,"Наблюдать за природой и вести записи наблюдений."]
[80,"Сажать деревья и ухаживать за ними."]
[81,"Работать со словарем и литературными источниками, библиографическими справочниками."]
[82,"Быстро переключаться с одной работы на другую."]
[83,"Выступать с докладами на исторические темы."]
[84,"Играть на музыкальных инструментах, рисовать или резать по дереву."]
[85,"Составлять описания минералов."]
[86,"Участвовать в географических экспедициях."]
[87,"Выступать с сообщениями о международном положении."]
[88,"Помогать работникам милиции."]
[89,"Посещать кружок юных моряков."]
[90,"Выполнять работу воспитателя."]
[91,"Уроки труда."]
[92,"Давать советы знакомым при покупке одежды."]
[93,"Наблюдать за работой строителя."]
[94,"Знакомиться со швейным производством."]
[95,"Делать модели самолетов, планеров, кораблей."]
[96,"Собирать радиоприемники и электроприборы."]
[97,"Участвовать в олимпиадах по физике."]
[98,"Участвовать в математических олимпиадах."]
[99,"Решать задачи по химии."]
[100,"Участвовать в работе астрономического кружка."]
[101,"Проводить опыты на животных."]
[102,"Изучать функции организма человека и причины возникновения болезней."]
[103,"Проводить опытную работу с целью выращивания новых сельскохозяйственных культур."]
[104,"Быть членом общества охраны природы."]
[105,"Участвовать в диспутах, читательских конференциях."]
[106,"Анализировать явления и события жизни."]
[107,"Интересоваться прошлым нашей страны."]
[108,"Проявлять интерес к теории и истории развития искусства."]
[109,"Совершать длительные и трудные походы, во время которых приходится напряженно работать по заданной программе."]
[110,"Составлять географические карты и собирать другие географические материалы."]
[111,"Изучать политический строй различных стран."]
[112,"Работа юриста."]
[113,"Посещать кружок юных космонавтов."]
[114,"Работа учителя."]
[115,"Бывать на заводах."]
[116,"Оказывать людям различные услуги."]
[117,"Принимать участие в строительных работах,"]
[118,"Знакомиться с изготовлением промышленных товаров."]
[119,"Разбираться в технических чертежах и схемах."]
[120,"Пользоваться точными измерительными приборами и производить расчеты по полученным данным."]
[121,"Проводить опыты по физике."]
[122,"Выполнять работы, требующие знания математических правил и формул."]
[123,"Ассистировать преподавателю при проведении опытов по химии."]
[124,"Собирать сведения о других планетах."]
[125,"Читать о деятельности известных биологов."]
[126,"Быть активным членом санитарных дружин."]
[127,"Выполнять работу по уходу за сельскохозяйственными машинами и орудиями труда."]
[128,"Знакомиться с ведением лесного хозяйства."]
[129,"Изучать происхождение слов и отдельных словосочетаний."]
[130,"Вести дневник, писать заметки в школьную и городскую газеты."]
[131,"Изучать историческое прошлое других стран."]
[132,"Неоднократно смотреть в театре одну и ту же пьесу."]
[133,"Читать о жизни и деятельности известных геологов."]
[134,"Изучать географию нашей планеты."]
[135,"Изучать биографии выдающихся политических деятелей."]
[136,"Правильно оценивать поступок друга, знакомого, литературного героя и т. д."]
[137,"Читать книги о средствах передвижения."]
[138,"Обучать и воспитывать детей."]
[139,"Наблюдать за действиями квалифицированного рабочего."]
[140,"Постоянно общаться со многими людьми."]
[141,"Проектировать строительные объекты."]
[142,"Посещать выставки легкой промышленности."]
[143,"Выполнять чертежи, проектировать машины."]
[144,"Разбираться в радиосхемах. "]

{"sheet":"Обработка результатов","index":1,"n_rows":27,"n_cols":49,"rows_kept":27,"cut":false,"hidden":false,"merged":[[2,1,2,6],[1,0,1,7]]}
[]
["Ключ к тесту"]
["Профессии","Номера вопросов",null,null,null,null,null,"Итого",null,"Итог"]
["Физика",{"$f":"IF('Бланк Методички'!L11='Бланк Методички'!$Y$11,2,IF('Бланк Методички'!L11='Бланк Методички'!$Y$12,1,IF('Бланк Методички'!L11='Бланк Методички'!$Y$13,0,IF('Бланк Методички'!L11='Бланк Методички'!$Y$14,-1,IF('Бланк Методички'!L11='Бланк Методички'!$Y$15,-2)))))","v":false},{"$f":"IF('Бланк Методички'!L35='Бланк Методички'!$Y$11,2,IF('Бланк Методички'!L35='Бланк Методички'!$Y$12,1,IF('Бланк Методички'!L35='Бланк Методички'!$Y$13,0,IF('Бланк Методички'!L35='Бланк Методички'!$Y$14,-1,IF('Бланк Методички'!L35='Бланк Методички'!$Y$15,-2)))))","v":false},{"$f":"IF('Бланк Методички'!L59='Бланк Методички'!$Y$11,2,IF('Бланк Методички'!L59='Бланк Методички'!$Y$12,1,IF('Бланк Методички'!L59='Бланк Методички'!$Y$13,0,IF('Бланк Методички'!L59='Бланк Методички'!$Y$14,-1,IF('Бланк Методички'!L59='Бланк Методички'!$Y$15,-2)))))","v":false},{"$f":"IF('Бланк Методички'!L83='Бланк Методички'!$Y$11,2,IF('Бланк Методички'!L83='Бланк Методички'!$Y$12,1,IF('Бланк Методички'!L83='Бланк Методички'!$Y$13,0,IF('Бланк Методички'!L83='Бланк Методички'!$Y$14,-1,IF('Бланк Методички'!L83='Бланк Методички'!$Y$15,-2)))))","v":false},{"$f":"IF('Бланк Методички'!L107='Бланк Методички'!$Y$11,2,IF('Бланк Методички'!L107='Бланк Методички'!$Y$12,1,IF('Бланк Методички'!L107='Бланк Методички'!$Y$13,0,IF('Бланк Методички'!L107='Бланк Методички'!$Y$14,-1,IF('Бланк Методички'!L107='Бланк Методички'!$Y$15,-2)))))","v":false},{"$f":"IF('Бланк Методички'!L131='Бланк Методички'!$Y$11,2,IF('Бланк Методички'!L131='Бланк Методички'!$Y$12,1,IF('Бланк Методички'!L131='Бланк Методички'!$Y$13,0,IF('Бланк Методички'!L131='Бланк Методички'!$Y$14,-1,IF('Бланк Методички'!L131='Бланк Методички'!$Y$15,-2)))))","v":false},{"$f":"SUM(B4:G4)","v":0},null,{"$f":"H4","v":0},"Физика"]
["Математика",{"$f":"IF('Бланк Методички'!L12='Бланк Методички'!$Y$11,2,IF('Бланк Методички'!L12='Бланк Методички'!$Y$12,1,IF('Бланк Методички'!L12='Бланк Методички'!$Y$13,0,IF('Бланк Методички'!L12='Бланк Методички'!$Y$14,-1,IF('Бланк Методички'!L12='Бланк Методички'!$Y$15,-2)))))","v":false},{"$f":"IF('Бланк Методички'!L36='Бланк Методички'!$Y$11,2,IF('Бланк Методички'!L36='Бланк Методички'!$Y$12,1,IF('Бланк Методички'!L36='Бланк Методички'!$Y$13,0,IF('Бланк Методички'!L36='Бланк Методички'!$Y$14,-1,IF('Бланк Методички'!L36='Бланк Методички'!$Y$15,-2)))))","v":false},{"$f":"IF('Бланк Методички'!L60='Бланк Методички'!$Y$11,2,IF('Бланк Методички'!L60='Бланк Методички'!$Y$12,1,IF('Бланк Методички'!L60='Бланк Методички'!$Y$13,0,IF('Бланк Методички'!L60='Бланк Методички'!$Y$14,-1,IF('Бланк Методички'!L60='Бланк Методички'!$Y$15,-2)))))","v":false},{"$f":"IF('Бланк Методички'!L84='Бланк Методички'!$Y$11,2,IF('Бланк Методички'!L84='Бланк Методички'!$Y$12,1,IF('Бланк Методички'!L84='Бланк Методички'!$Y$13,0,IF('Бланк Методички'!L84='Бланк Методички'!$Y$14,-1,IF('Бланк Методички'!L84='Бланк Методички'!$Y$15,-2)))))","v":false},{"$f":"IF('Бланк Методички'!L108='Бланк Методички'!$Y$11,2,IF('Бланк Методички'!L108='Бланк Методички'!$Y$12,1,IF('Бланк Методички'!L108='Бланк Методички'!$Y$13,0,IF('Бланк Методички'!L108='Бланк Методички'!$Y$14,-1,IF('Бланк Методички'!L108='Бланк Методички'!$Y$15,-2)))))","v":false},{"$f":"IF('Бланк Методички'!L132='Бланк Методички'!$Y$11,2,IF('Бланк Методички'!L132='Бланк Методички'!$Y$12,1,IF('Бланк Методички'!L132='Бланк Методички'!$Y$13,0,IF('Бланк Методички'!L132='Бланк Методички'!$Y$14,-1,IF('Бланк Методички'!L132='Бланк Методички'!$Y$15,-2)))))","v":false},0,null,0,"Математика"]
["Химия",{"$f":"IF('Бланк Методички'!L13='Бланк Методички'!$Y$11,2,IF('Бланк Методички'!L13='Бланк Методички'!$Y$12,1,IF('Бланк Методички'!L13='Бланк Методички'!$Y$13,0,IF('Бланк Методички'!L13='Бланк Методички'!$Y$14,-1,IF('Бланк Методички'!L13='Бланк Методички'!$Y$15,-2)))))","v":false},{"$f":"IF('Бланк Методички'!L37='Бланк Методички'!$Y$11,2,IF('Бланк Методички'!L37='Бланк Методички'!$Y$12,1,IF('Бланк Методички'!L37='Бланк Методички'!$Y$13,0,IF('Бланк Методички'!L37='Бланк Методички'!$Y$14,-1,IF('Бланк Методички'!L37='Бланк Методички'!$Y$15,-2)))))","v":false},{"$f":"IF('Бланк Методички'!L61='Бланк Методички'!$Y$11,2,IF('Бланк Методички'!L61='Бланк Методички'!$Y$12,1,IF('Бланк Методички'!L61='Бланк Методички'!$Y$13,0,IF('Бланк Методички'!L61='Бланк Методички'!$Y$14,-1,IF('Бланк Методички'!L61='Бланк Методички'!$Y$15,-2)))))","v":false},{"$f":"IF('Бланк Методички'!L85='Бланк Методички'!$Y$11,2,IF('Бланк Методички'!L85='Бланк Методички'!$Y$12,1,IF('Бланк Методички'!L85='Бланк Методички'!$Y$13,0,IF('Бланк Методички'!L85='Бланк Методички'!$Y$14,-1,IF('Бланк Методички'!L85='Бланк Методички'!$Y$15,-2)))))","v":false},{"$f":"IF('Бланк Методички'!L109='Бланк Методички'!$Y$11,2,IF('Бланк Методички'!L109='Бланк Методички'!$Y$12,1,IF('Бланк Методички'!L109='Бланк Методички'!$Y$13,0,IF('Бланк Методички'!L109='Бланк Методички'!$Y$14,-1,IF('Бланк Методички'!L109='Бланк Методички'!$Y$15,-2)))))","v":false},{"$f":"IF('Бланк Методички'!L133='Бланк Методички'!$Y$11,2,IF('Бланк Методички'!L133='Бланк Методички'!$Y$12,1,IF('Бланк Методички'!L133='Бланк Методички'!$Y$13,0,IF('Бланк Методички'!L133='Бланк Методички'!$Y$14,-1,IF('Бланк Методички'!L133='Бланк Методички'!$Y$15,-2)))))","v":false},0,null,0,"Химия"]
["Астрономия",{"$f":"IF('Бланк Методички'!L14='Бланк Методички'!$Y$11,2,IF('Бланк Методички'!L14='Бланк Методички'!$Y$12,1,IF('Бланк Методички'!L14='Бланк Методички'!$Y$13,0,IF('Бланк Методички'!L14='Бланк Методички'!$Y$14,-1,IF('Бланк Методички'!L14='Бланк Методички'!$Y$15,-2)))))","v":false},{"$f":"IF('Бланк Методички'!L38='Бланк Методички'!$Y$11,2,IF('Бланк Методички'!L38='Бланк Методички'!$Y$12,1,IF('Бланк Методички'!L38='Бланк Методички'!$Y$13,0,IF('Бланк Методички'!L38='Бланк Методички'!$Y$14,-1,IF('Бланк Методички'!L38='Бланк Методички'!$Y$15,-2)))))","v":false},{"$f":"IF('Бланк Методички'!L62='Бланк Методички'!$Y$11,2,IF('Бланк Методички'!L62='Бланк Методички'!$Y$12,1,IF('Бланк Методички'!L62='Бланк Методички'!$Y$13,0,IF('Бланк Методички'!L62='Бланк Методички'!$Y$14,-1,IF('Бланк Методички'!L62='Бланк Методички'!$Y$15,-2)))))","v":false},{"$f":"IF('Бланк Методички'!L86='Бланк Методички'!$Y$11,2,IF('Бланк Методички'!L86='Бланк Методички'!$Y$12,1,IF('Бланк Методички'!L86='Бланк Методички'!$Y$13,0,IF('Бланк Методички'!L86='Бланк Методички'!$Y$14,-1,IF('Бланк Методички'!L86='Бланк Методички'!$Y$15,-2)))))","v":false},{"$f":"IF('Бланк Методички'!L110='Бланк Методички'!$Y$11,2,IF('Бланк Методички'!L110='Бланк Методички'!$Y$12,1,IF('Бланк Методички'!L110='Бланк Методички'!$Y$13,0,IF('Бланк Методички'!L110='Бланк Методички'!$Y$14,-1,IF('Бланк Методички'!L110='Бланк Методички'!$Y$15,-2)))))","v":false},{"$f":"IF('Бланк Методички'!L134='Бланк Методички'!$Y$11,2,IF('Бланк Методички'!L134='Бланк Методички'!$Y$12,1,IF('Бланк Методички'!L134='Бланк Методички'!$Y$13,0,IF('Бланк Методички'!L134='Бланк Методички'!$Y$14,-1,IF('Бланк Методички'!L134='Бланк Методички'!$Y$15,-2)))))","v":false},0,null,0,"Астрономия"]
["Биология",{"$f":"IF('Бланк Методички'!L15='Бланк Методички'!$Y$11,2,IF('Бланк Методички'!L15='Бланк Методички'!$Y$12,1,IF('Бланк Методички'!L15='Бланк Методички'!$Y$13,0,IF('Бланк Методички'!L15='Бланк Методички'!$Y$14,-1,IF('Бланк Методички'!L15='Бланк Методички'!$Y$15,-2)))))","v":false},{"$f":"IF('Бланк Методички'!L39='Бланк Методички'!$Y$11,2,IF('Бланк Методички'!L39='Бланк Методички'!$Y$12,1,IF('Бланк Методички'!L39='Бланк Методички'!$Y$13,0,IF('Бланк Методички'!L39='Бланк Методички'!$Y$14,-1,IF('Бланк Методички'!L39='Бланк Методички'!$Y$15,-2)))))","v":false},{"$f":"IF('Бланк Методички'!L63='Бланк Методички'!$Y$11,2,IF('Бланк Методички'!L63='Бланк Методички'!$Y$12,1,IF('Бланк Методички'!L63='Бланк Методички'!$Y$13,0,IF('Бланк Методички'!L63='Бланк Методички'!$Y$14,-1,IF('Бланк Методички'!L63='Бланк Методички'!$Y$15,-2)))))","v":false},{"$f":"IF('Бланк Методички'!L87='Бланк Методички'!$Y$11,2,IF('Бланк Методички'!L87='Бланк Методички'!$Y$12,1,IF('Бланк Методички'!L87='Бланк Методички'!$Y$13,0,IF('Бланк Методички'!L87='Бланк Методички'!$Y$14,-1,IF('Бланк Методички'!L87='Бланк Методички'!$Y$15,-2)))))","v":false},{"$f":"IF('Бланк Методички'!L111='Бланк Методички'!$Y$11,2,IF('Бланк Методички'!L111='Бланк Методички'!$Y$12,1,IF('Бланк Методички'!L111='Бланк Методички'!$Y$13,0,IF('Бланк Методички'!L111='Бланк Методички'!$Y$14,-1,IF('Бланк Методички'!L111='Бланк Методички'!$Y$15,-2)))))","v":false},{"$f":"IF('Бланк Методички'!L135='Бланк Методички'!$Y$11,2,IF('Бланк Методички'!L135='Бланк Методички'!$Y$12,1,IF('Бланк Методички'!L135='Бланк Методички'!$Y$13,0,IF('Бланк Методички'!L135='Бланк Методички'!$Y$14,-1,IF('Бланк Методички'!L135='Бланк Методички'!$Y$15,-2)))))","v":false},0,null,0,"Биология"]
["Медицина",{"$f":"IF('Бланк Методички'!L16='Бланк Методички'!$Y$11,2,IF('Бланк Методички'!L16='Бланк Методички'!$Y$12,1,IF('Бланк Методички'!L16='Бланк Методички'!$Y$13,0,IF('Бланк Методички'!L16='Бланк Методички'!$Y$14,-1,IF('Бланк Методички'!L16='Бланк Методички'!$Y$15,-2)))))","v":false},{"$f":"IF('Бланк Методички'!L40='Бланк Методички'!$Y$11,2,IF('Бланк Методички'!L40='Бланк Методички'!$Y$12,1,IF('Бланк Методички'!L40='Бланк Методички'!$Y$13,0,IF('Бланк Методички'!L40='Бланк Методички'!$Y$14,-1,IF('Бланк Методички'!L40='Бланк Методички'!$Y$15,-2)))))","v":false},{"$f":"IF('Бланк Методички'!L64='Бланк Методички'!$Y$11,2,IF('Бланк Методички'!L64='Бланк Методички'!$Y$12,1,IF('Бланк Методички'!L64='Бланк Методички'!$Y$13,0,IF('Бланк Методички'!L64='Бланк Методички'!$Y$14,-1,IF('Бланк Методички'!L64='Бланк Методички'!$Y$15,-2)))))","v":false},{"$f":"IF('Бланк Методички'!L88='Бланк Методички'!$Y$11,2,IF('Бланк Методички'!L88='Бланк Методички'!$Y$12,1,IF('Бланк Методички'!L88='Бланк Методички'!$Y$13,0,IF('Бланк Методички'!L88='Бланк Методички'!$Y$14,-1,IF('Бланк Методички'!L88='Бланк Методички'!$Y$15,-2)))))","v":false},{"$f":"IF('Бланк Методички'!L112='Бланк Методички'!$Y$11,2,IF('Бланк Методички'!L112='Бланк Методички'!$Y$12,1,IF('Бланк Методички'!L112='Бланк Методички'!$Y$13,0,IF('Бланк Методички'!L112='Бланк Методички'!$Y$14,-1,IF('Бланк Методички'!L112='Бланк Методички'!$Y$15,-2)))))","v":false},{"$f":"IF('Бланк Методички'!L136='Бланк Методички'!$Y$11,2,IF('Бланк Методички'!L136='Бланк Методички'!$Y$12,1,IF('Бланк Методички'!L136='Бланк Методички'!$Y$13,0,IF('Бланк Методички'!L136='Бланк Методички'!$Y$14,-1,IF('Бланк Методички'!L136='Бланк Методички'!$Y$15,-2)))))","v":false},0,null,0,"Медицина"]
["Сельское хозяйство",{"$f":"IF('Бланк Методички'!L17='Бланк Методички'!$Y$11,2,IF('Бланк Методички'!L17='Бланк Методички'!$Y$12,1,IF('Бланк Методички'!L17='Бланк Методички'!$Y$13,0,IF('Бланк Методички'!L17='Бланк Методички'!$Y$14,-1,IF('Бланк Методички'!L17='Бланк Методички'!$Y$15,-2)))))","v":false},{"$f":"IF('Бланк Методички'!L41='Бланк Методички'!$Y$11,2,IF('Бланк Методички'!L41='Бланк Методички'!$Y$12,1,IF('Бланк Методички'!L41='Бланк Методички'!$Y$13,0,IF('Бланк Методички'!L41='Бланк Методички'!$Y$14,-1,IF('Бланк Методички'!L41='Бланк Методички'!$Y$15,-2)))))","v":false},{"$f":"IF('Бланк Методички'!L65='Бланк Методички'!$Y$11,2,IF('Бланк Методички'!L65='Бланк Методички'!$Y$12,1,IF('Бланк Методички'!L65='Бланк Методички'!$Y$13,0,IF('Бланк Методички'!L65='Бланк Методички'!$Y$14,-1,IF('Бланк Методички'!L65='Бланк Методички'!$Y$15,-2)))))","v":false},{"$f":"IF('Бланк Методички'!L89='Бланк Методички'!$Y$11,2,IF('Бланк Методички'!L89='Бланк Методички'!$Y$12,1,IF('Бланк Методички'!L89='Бланк Методички'!$Y$13,0,IF('Бланк Методички'!L89='Бланк Методички'!$Y$14,-1,IF('Бланк Методички'!L89='Бланк Методички'!$Y$15,-2)))))","v":false},{"$f":"IF('Бланк Методички'!L113='Бланк Методички'!$Y$11,2,IF('Бланк Методички'!L113='Бланк Методички'!$Y$12,1,IF('Бланк Методички'!L113='Бланк Методички'!$Y$13,0,IF('Бланк Методички'!L113='Бланк Методички'!$Y$14,-1,IF('Бланк Методички'!L113='Бланк Методички'!$Y$15,-2)))))","v":false},{"$f":"IF('Бланк Методички'!L137='Бланк Методички'!$Y$11,2,IF('Бланк Методички'!L137='Бланк Методички'!$Y$12,1,IF('Бланк Методички'!L137='Бланк Методички'!$Y$13,0,IF('Бланк Методички'!L137='Бланк Методички'!$Y$14,-1,IF('Бланк Методички'!L137='Бланк Методички'!$Y$15,-2)))))","v":false},0,null,0,"Сельское хозяйство",null,null,null,null,null,null,null,null,null,null,null,null,null,null,null,null,null,null,null,null,null,null,null,null,null,null,null,null,null,null,null,null,null,null,{"$f":"'Бланк Методички'!L24","v":0},{"$f":"'Бланк Методички'!L40","v":0},{"$f":"'Бланк Методички'!L48","v":0}]
["Лесное хозяйство",{"$f":"IF('Бланк Методички'!L18='Бланк Методички'!$Y$11,2,IF('Бланк Методички'!L18='Бланк Методички'!$Y$12,1,IF('Бланк Методички'!L18='Бланк Методички'!$Y$13,0,IF('Бланк Методички'!L18='Бланк Методички'!$Y$14,-1,IF('Бланк Методички'!L18='Бланк Методички'!$Y$15,-2)))))","v":false},{"$f":"IF('Бланк Методички'!L42='Бланк Методички'!$Y$11,2,IF('Бланк Методички'!L42='Бланк Методички'!$Y$12,1,IF('Бланк Методички'!L42='Бланк Методички'!$Y$13,0,IF('Бланк Методички'!L42='Бланк Методички'!$Y$14,-1,IF('Бланк Методички'!L42='Бланк Методички'!$Y$15,-2)))))","v":false},{"$f":"IF('Бланк Методички'!L66='Бланк Методички'!$Y$11,2,IF('Бланк Методички'!L66='Бланк Методички'!$Y$12,1,IF('Бланк Методички'!L66='Бланк Методички'!$Y$13,0,IF('Бланк Методички'!L66='Бланк Методички'!$Y$14,-1,IF('Бланк Методички'!L66='Бланк Методички'!$Y$15,-2)))))","v":false},{"$f":"IF('Бланк Методички'!L90='Бланк Методички'!$Y$11,2,IF('Бланк Методички'!L90='Бланк Методички'!$Y$12,1,IF('Бланк Методички'!L90='Бланк Методички'!$Y$13,0,IF('Бланк Методички'!L90='Бланк Методички'!$Y$14,-1,IF('Бланк Методички'!L90='Бланк Методички'!$Y$15,-2)))))","v":false},{"$f":"IF('Бланк Методички'!L114='Бланк Методички'!$Y$11,2,IF('Бланк Методички'!L114='Бланк Методички'!$Y$12,1,IF('Бланк Методички'!L114='Бланк Методички'!$Y$13,0,IF('Бланк Методички'!L114='Бланк Методички'!$Y$14,-1,IF('Бланк Методички'!L114='Бланк Методички'!$Y$15,-2)))))","v":false},{"$f":"IF('Бланк Методички'!L138='Бланк Методички'!$Y$11,2,IF('Бланк Методички'!L138='Бланк Методички'!$Y$12,1,IF('Бланк Методички'!L138='Бланк Методички'!$Y$13,0,IF('Бланк Методички'!L138='Бланк Методички'!$Y$14,-1,IF('Бланк Методички'!L138='Бланк Методички'!$Y$15,-2)))))","v":false},0,null,0,"Лесное хозяйство",null,null,null,null,null,null,null,null,null,null,null,null,null,null,null,null,null,null,null,null,null,null,null,null,null,null,null,null,null,null,null,null,null,null,{"$f":"'Бланк Методички'!L14","v":0},{"$f":"'Бланк Методички'!L30","v":0},{"$f":"'Бланк Методички'!L42","v":0}]
["Филология",{"$f":"IF('Бланк Методички'!L19='Бланк Методички'!$Y$11,2,IF('Бланк Методички'!L19='Бланк Методички'!$Y$12,1,IF('Бланк Методички'!L19='Бланк Методички'!$Y$13,0,IF('Бланк Методички'!L19='Бланк Методички'!$Y$14,-1,IF('Бланк Методички'!L19='Бланк Методички'!$Y$15,-2)))))","v":false},{"$f":"IF('Бланк Методички'!L43='Бланк Методички'!$Y$11,2,IF('Бланк Методички'!L43='Бланк Методички'!$Y$12,1,IF('Бланк Методички'!L43='Бланк Методички'!$Y$13,0,IF('Бланк Методички'!L43='Бланк Методички'!$Y$14,-1,IF('Бланк Методички'!L43='Бланк Методички'!$Y$15,-2)))))","v":false},{"$f":"IF('Бланк Методички'!L67='Бланк Методички'!$Y$11,2,IF('Бланк Методички'!L67='Бланк Методички'!$Y$12,1,IF('Бланк Методички'!L67='Бланк Методички'!$Y$13,0,IF('Бланк Методички'!L67='Бланк Методички'!$Y$14,-1,IF('Бланк Методички'!L67='Бланк Методички'!$Y$15,-2)))))","v":false},{"$f":"IF('Бланк Методички'!L91='Бланк Методички'!$Y$11,2,IF('Бланк Методички'!L91='Бланк Методички'!$Y$12,1,IF('Бланк Методички'!L91='Бланк Методички'!$Y$13,0,IF('Бланк Методички'!L91='Бланк Методички'!$Y$14,-1,IF('Бланк Методички'!L91='Бланк Методички'!$Y$15,-2)))))","v":false},{"$f":"IF('Бланк Методички'!L115='Бланк Методички'!$Y$11,2,IF('Бланк Методички'!L115='Бланк Методички'!$Y$12,1,IF('Бланк Методички'!L115='Бланк Методички'!$Y$13,0,IF('Бланк Методички'!L115='Бланк Методички'!$Y$14,-1,IF('Бланк Методички'!L115='Бланк Методички'!$Y$15,-2)))))","v":false},{"$f":"IF('Бланк Методички'!L139='Бланк Методички'!$Y$11,2,IF('Бланк Методички'!L139='Бланк Методички'!$Y$12,1,IF('Бланк Методички'!L139='Бланк Методички'!$Y$13,0,IF('Бланк Методички'!L139='Бланк Методички'!$Y$14,-1,IF('Бланк Методички'!L139='Бланк Методички'!$Y$15,-2)))))","v":false},0,null,0,"Филология",null,null,null,null,null,null,null,null,null,null,null,null,null,null,null,null,null,null,null,null,null,null,null,null,null,null,null,null,null,null,null,null,null,null,{"$f":"'Бланк Методички'!L11","v":0},{"$f":"'Бланк Методички'!L19","v":0},{"$f":"'Бланк Методички'!L35","v":0},{"$f":"'Бланк Методички'!L43","v":0}]
["Журналистика",{"$f":"IF('Бланк Методички'!L20='Бланк Методички'!$Y$11,2,IF('Бланк Методички'!L20='Бланк Методички'!$Y$12,1,IF('Бланк Методички'!L20='Бланк Методички'!$Y$13,0,IF('Бланк Методички'!L20='Бланк Методички'!$Y$14,-1,IF('Бланк Методички'!L20='Бланк Методички'!$Y$15,-2)))))","v":false},{"$f":"IF('Бланк Методички'!L44='Бланк Методички'!$Y$11,2,IF('Бланк Методички'!L44='Бланк Методички'!$Y$12,1,IF('Бланк Методички'!L44='Бланк Методички'!$Y$13,0,IF('Бланк Методички'!L44='Бланк Методички'!$Y$14,-1,IF('Бланк Методички'!L44='Бланк Методички'!$Y$15,-2)))))","v":false},{"$f":"IF('Бланк Методички'!L68='Бланк Методички'!$Y$11,2,IF('Бланк Методички'!L68='Бланк Методички'!$Y$12,1,IF('Бланк Методички'!L68='Бланк Методички'!$Y$13,0,IF('Бланк Методички'!L68='Бланк Методички'!$Y$14,-1,IF('Бланк Методички'!L68='Бланк Методички'!$Y$15,-2)))))","v":false},{"$f":"IF('Бланк Методички'!L92='Бланк Методички'!$Y$11,2,IF('Бланк Методички'!L92='Бланк Методички'!$Y$12,1,IF('Бланк Методички'!L92='Бланк Методички'!$Y$13,0,IF('Бланк Методички'!L92='Бланк Методички'!$Y$14,-1,IF('Бланк Методички'!L92='Бланк Методички'!$Y$15,-2)))))","v":false},{"$f":"IF('Бланк Методички'!L116='Бланк Методички'!$Y$11,2,IF('Бланк Методички'!L116='Бланк Методички'!$Y$12,1,IF('Бланк Методички'!L116='Бланк Методички'!$Y$13,0,IF('Бланк Методички'!L116='Бланк Методички'!$Y$14,-1,IF('Бланк Методички'!L116='Бланк Методички'!$Y$15,-2)))))","v":false},{"$f":"IF('Бланк Методички'!L140='Бланк Методички'!$Y$11,2,IF('Бланк Методички'!L140='Бланк Методички'!$Y$12,1,IF('Бланк Методички'!L140='Бланк Методички'!$Y$13,0,IF('Бланк Методички'!L140='Бланк Методички'!$Y$14,-1,IF('Бланк Методички'!L140='Бланк Методички'!$Y$15,-2)))))","v":false},0,null,0,"Журналистика"]
["История",{"$f":"IF('Бланк Методички'!L21='Бланк Методички'!$Y$11,2,IF('Бланк Методички'!L21='Бланк Методички'!$Y$12,1,IF('Бланк Методички'!L21='Бланк Методички'!$Y$13,0,IF('Бланк Методички'!L21='Бланк Методички'!$Y$14,-1,IF('Бланк Методички'!L21='Бланк Методички'!$Y$15,-2)))))","v":false},{"$f":"IF('Бланк Методички'!L45='Бланк Методички'!$Y$11,2,IF('Бланк Методички'!L45='Бланк Методички'!$Y$12,1,IF('Бланк Методички'!L45='Бланк Методички'!$Y$13,0,IF('Бланк Методички'!L45='Бланк Методички'!$Y$14,-1,IF('Бланк Методички'!L45='Бланк Методички'!$Y$15,-2)))))","v":false},{"$f":"IF('Бланк Методички'!L69='Бланк Методички'!$Y$11,2,IF('Бланк Методички'!L69='Бланк Методички'!$Y$12,1,IF('Бланк Методички'!L69='Бланк Методички'!$Y$13,0,IF('Бланк Методички'!L69='Бланк Методички'!$Y$14,-1,IF('Бланк Методички'!L69='Бланк Методички'!$Y$15,-2)))))","v":false},{"$f":"IF('Бланк Методички'!L93='Бланк Методички'!$Y$11,2,IF('Бланк Методички'!L93='Бланк Методички'!$Y$12,1,IF('Бланк Методички'!L93='Бланк Методички'!$Y$13,0,IF('Бланк Методички'!L93='Бланк Методички'!$Y$14,-1,IF('Бланк Методички'!L93='Бланк Методички'!$Y$15,-2)))))","v":false},{"$f":"IF('Бланк Методички'!L117='Бланк Методички'!$Y$11,2,IF('Бланк Методички'!L117='Бланк Методички'!$Y$12,1,IF('Бланк Методички'!L117='Бланк Методички'!$Y$13,0,IF('Бланк Методички'!L117='Бланк Методички'!$Y$14,-1,IF('Бланк Методички'!L117='Бланк Методички'!$Y$15,-2)))))","v":false},{"$f":"IF('Бланк Методички'!L141='Бланк Методички'!$Y$11,2,IF('Бланк Методички'!L141='Бланк Методички'!$Y$12,1,IF('Бланк Методички'!L141='Бланк Методички'!$Y$13,0,IF('Бланк Методички'!L141='Бланк Методички'!$Y$14,-1,IF('Бланк Методички'!L141='Бланк Методички'!$Y$15,-2)))))","v":false},0,null,0,"История"]
["Искусство",{"$f":"IF('Бланк Методички'!L22='Бланк Методички'!$Y$11,2,IF('Бланк Методички'!L22='Бланк Методички'!$Y$12,1,IF('Бланк Методички'!L22='Бланк Методички'!$Y$13,0,IF('Бланк Методички'!L22='Бланк Методички'!$Y$14,-1,IF('Бланк Методички'!L22='Бланк Методички'!$Y$15,-2)))))","v":false},{"$f":"IF('Бланк Методички'!L46='Бланк Методички'!$Y$11,2,IF('Бланк Методички'!L46='Бланк Методички'!$Y$12,1,IF('Бланк Методички'!L46='Бланк Методички'!$Y$13,0,IF('Бланк Методички'!L46='Бланк Методички'!$Y$14,-1,IF('Бланк Методички'!L46='Бланк Методички'!$Y$15,-2)))))","v":false},{"$f":"IF('Бланк Методички'!L70='Бланк Методички'!$Y$11,2,IF('Бланк Методички'!L70='Бланк Методички'!$Y$12,1,IF('Бланк Методички'!L70='Бланк Методички'!$Y$13,0,IF('Бланк Методички'!L70='Бланк Методички'!$Y$14,-1,IF('Бланк Методички'!L70='Бланк Методички'!$Y$15,-2)))))","v":false},{"$f":"IF('Бланк Методички'!L94='Бланк Методички'!$Y$11,2,IF('Бланк Методички'!L94='Бланк Методички'!$Y$12,1,IF('Бланк Методички'!L94='Бланк Методички'!$Y$13,0,IF('Бланк Методички'!L94='Бланк Методички'!$Y$14,-1,IF('Бланк Методички'!L94='Бланк Методички'!$Y$15,-2)))))","v":false},{"$f":"IF('Бланк Методички'!L118='Бланк Методички'!$Y$11,2,IF('Бланк Методички'!L118='Бланк Методички'!$Y$12,1,IF('Бланк Методички'!L118='Бланк Методички'!$Y$13,0,IF('Бланк Методички'!L118='Бланк Методички'!$Y$14,-1,IF('Бланк Методички'!L118='Бланк Методички'!$Y$15,-2)))))","v":false},{"$f":"IF('Бланк Методички'!L142='Бланк Методички'!$Y$11,2,IF('Бланк Методички'!L142='Бланк Методички'!$Y$12,1,IF('Бланк Методички'!L142='Бланк Методички'!$Y$13,0,IF('Бланк Методички'!L142='Бланк Методички'!$Y$14,-1,IF('Бланк Методички'!L142='Бланк Методички'!$Y$15,-2)))))","v":false},0,null,0,"Искусство"]
["Геология",{"$f":"IF('Бланк Методички'!L23='Бланк Методички'!$Y$11,2,IF('Бланк Методички'!L23='Бланк Методички'!$Y$12,1,IF('Бланк Методички'!L23='Бланк Методички'!$Y$13,0,IF('Бланк Методички'!L23='Бланк Методички'!$Y$14,-1,IF('Бланк Методички'!L23='Бланк Методички'!$Y$15,-2)))))","v":false},{"$f":"IF('Бланк Методички'!L47='Бланк Методички'!$Y$11,2,IF('Бланк Методички'!L47='Бланк Методички'!$Y$12,1,IF('Бланк Методички'!L47='Бланк Методички'!$Y$13,0,IF('Бланк Методички'!L47='Бланк Методички'!$Y$14,-1,IF('Бланк Методички'!L47='Бланк Методички'!$Y$15,-2)))))","v":false},{"$f":"IF('Бланк Методички'!L71='Бланк Методички'!$Y$11,2,IF('Бланк Методички'!L71='Бланк Методички'!$Y$12,1,IF('Бланк Методички'!L71='Бланк Методички'!$Y$13,0,IF('Бланк Методички'!L71='Бланк Методички'!$Y$14,-1,IF('Бланк Методички'!L71='Бланк Методички'!$Y$15,-2)))))","v":false},{"$f":"IF('Бланк Методички'!L95='Бланк Методички'!$Y$11,2,IF('Бланк Методички'!L95='Бланк Методички'!$Y$12,1,IF('Бланк Методички'!L95='Бланк Методички'!$Y$13,0,IF('Бланк Методички'!L95='Бланк Методички'!$Y$14,-1,IF('Бланк Методички'!L95='Бланк Методички'!$Y$15,-2)))))","v":false},{"$f":"IF('Бланк Методички'!L119='Бланк Методички'!$Y$11,2,IF('Бланк Методички'!L119='Бланк Методички'!$Y$12,1,IF('Бланк Методички'!L119='Бланк Методички'!$Y$13,0,IF('Бланк Методички'!L119='Бланк Методички'!$Y$14,-1,IF('Бланк Методички'!L119='Бланк Методички'!$Y$15,-2)))))","v":false},{"$f":"IF('Бланк Методички'!L143='Бланк Методички'!$Y$11,2,IF('Бланк Методички'!L143='Бланк Методички'!$Y$12,1,IF('Бланк Методички'!L143='Бланк Методички'!$Y$13,0,IF('Бланк Методички'!L143='Бланк Методички'!$Y$14,-1,IF('Бланк Методички'!L143='Бланк Методички'!$Y$15,-2)))))","v":false},0,null,0,"Геология"]
["География",{"$f":"IF('Бланк Методички'!L24='Бланк Методички'!$Y$11,2,IF('Бланк Методички'!L24='Бланк Методички'!$Y$12,1,IF('Бланк Методички'!L24='Бланк Методички'!$Y$13,0,IF('Бланк Методички'!L24='Бланк Методички'!$Y$14,-1,IF('Бланк Методички'!L24='Бланк Методички'!$Y$15,-2)))))","v":false},{"$f":"IF('Бланк Методички'!L48='Бланк Методички'!$Y$11,2,IF('Бланк Методички'!L48='Бланк Методички'!$Y$12,1,IF('Бланк Методички'!L48='Бланк Методички'!$Y$13,0,IF('Бланк Методички'!L48='Бланк Методички'!$Y$14,-1,IF('Бланк Методички'!L48='Бланк Методички'!$Y$15,-2)))))","v":false},{"$f":"IF('Бланк Методички'!L72='Бланк Методички'!$Y$11,2,IF('Бланк Методички'!L72='Бланк Методички'!$Y$12,1,IF('Бланк Методички'!L72='Бланк Методички'!$Y$13,0,IF('Бланк Методички'!L72='Бланк Методички'!$Y$14,-1,IF('Бланк Методички'!L72='Бланк Методички'!$Y$15,-2)))))","v":false},{"$f":"IF('Бланк Методички'!L96='Бланк Методички'!$Y$11,2,IF('Бланк Методички'!L96='Бланк Методички'!$Y$12,1,IF('Бланк Методички'!L96='Бланк Методички'!$Y$13,0,IF('Бланк Методички'!L96='Бланк Методички'!$Y$14,-1,IF('Бланк Методички'!L96='Бланк Методички'!$Y$15,-2)))))","v":false},{"$f":"IF('Бланк Методички'!L120='Бланк Методички'!$Y$11,2,IF('Бланк Методички'!L120='Бланк Методички'!$Y$12,1,IF('Бланк Методички'!L120='Бланк Методички'!$Y$13,0,IF('Бланк Методички'!L120='Бланк Методички'!$Y$14,-1,IF('Бланк Методички'!L120='Бланк Методички'!$Y$15,-2)))))","v":false},{"$f":"IF('Бланк Методички'!L144='Бланк Методички'!$Y$11,2,IF('Бланк Методички'!L144='Бланк Методички'!$Y$12,1,IF('Бланк Методички'!L144='Бланк Методички'!$Y$13,0,IF('Бланк Методички'!L144='Бланк Методички'!$Y$14,-1,IF('Бланк Методички'!L144='Бланк Методички'!$Y$15,-2)))))","v":false},0,null,0,"География"]
["Общественная работа",{"$f":"IF('Бланк Методички'!L25='Бланк Методички'!$Y$11,2,IF('Бланк Методички'!L25='Бланк Методички'!$Y$12,1,IF('Бланк Методички'!L25='Бланк Методички'!$Y$13,0,IF('Бланк Методички'!L25='Бланк Методички'!$Y$14,-1,IF('Бланк Методички'!L25='Бланк Методички'!$Y$15,-2)))))","v":false},{"$f":"IF('Бланк Методички'!L49='Бланк Методички'!$Y$11,2,IF('Бланк Методички'!L49='Бланк Методички'!$Y$12,1,IF('Бланк Методички'!L49='Бланк Методички'!$Y$13,0,IF('Бланк Методички'!L49='Бланк Методички'!$Y$14,-1,IF('Бланк Методички'!L49='Бланк Методички'!$Y$15,-2)))))","v":false},{"$f":"IF('Бланк Методички'!L73='Бланк Методички'!$Y$11,2,IF('Бланк Методички'!L73='Бланк Методички'!$Y$12,1,IF('Бланк Методички'!L73='Бланк Методички'!$Y$13,0,IF('Бланк Методички'!L73='Бланк Методички'!$Y$14,-1,IF('Бланк Методички'!L73='Бланк Методички'!$Y$15,-2)))))","v":false},{"$f":"IF('Бланк Методички'!L97='Бланк Методички'!$Y$11,2,IF('Бланк Методички'!L97='Бланк Методички'!$Y$12,1,IF('Бланк Методички'!L97='Бланк Методички'!$Y$13,0,IF('Бланк Методички'!L97='Бланк Методички'!$Y$14,-1,IF('Бланк Методички'!L97='Бланк Методички'!$Y$15,-2)))))","v":false},{"$f":"IF('Бланк Методички'!L121='Бланк Методички'!$Y$11,2,IF('Бланк Методички'!L121='Бланк Методички'!$Y$12,1,IF('Бланк Методички'!L121='Бланк Методички'!$Y$13,0,IF('Бланк Методички'!L121='Бланк Методички'!$Y$14,-1,IF('Бланк Методички'!L121='Бланк Методички'!$Y$15,-2)))))","v":false},{"$f":"IF('Бланк Методички'!L145='Бланк Методички'!$Y$11,2,IF('Бланк Методички'!L145='Бланк Методички'!$Y$12,1,IF('Бланк Методички'!L145='Бланк Методички'!$Y$13,0,IF('Бланк Методички'!L145='Бланк Методички'!$Y$14,-1,IF('Бланк Методички'!L145='Бланк Методички'!$Y$15,-2)))))","v":false},0,null,0,"Общественная работа"]
["Право",{"$f":"IF('Бланк Методички'!L26='Бланк Методички'!$Y$11,2,IF('Бланк Методички'!L26='Бланк Методички'!$Y$12,1,IF('Бланк Методички'!L26='Бланк Методички'!$Y$13,0,IF('Бланк Методички'!L26='Бланк Методички'!$Y$14,-1,IF('Бланк Методички'!L26='Бланк Методички'!$Y$15,-2)))))","v":false},{"$f":"IF('Бланк Методички'!L50='Бланк Методички'!$Y$11,2,IF('Бланк Методички'!L50='Бланк Методички'!$Y$12,1,IF('Бланк Методички'!L50='Бланк Методички'!$Y$13,0,IF('Бланк Методички'!L50='Бланк Методички'!$Y$14,-1,IF('Бланк Методички'!L50='Бланк Методички'!$Y$15,-2)))))","v":false},{"$f":"IF('Бланк Методички'!L74='Бланк Методички'!$Y$11,2,IF('Бланк Методички'!L74='Бланк Методички'!$Y$12,1,IF('Бланк Методички'!L74='Бланк Методички'!$Y$13,0,IF('Бланк Методички'!L74='Бланк Методички'!$Y$14,-1,IF('Бланк Методички'!L74='Бланк Методички'!$Y$15,-2)))))","v":false},{"$f":"IF('Бланк Методички'!L98='Бланк Методички'!$Y$11,2,IF('Бланк Методички'!L98='Бланк Методички'!$Y$12,1,IF('Бланк Методички'!L98='Бланк Методички'!$Y$13,0,IF('Бланк Методички'!L98='Бланк Методички'!$Y$14,-1,IF('Бланк Методички'!L98='Бланк Методички'!$Y$15,-2)))))","v":false},{"$f":"IF('Бланк Методички'!L122='Бланк Методички'!$Y$11,2,IF('Бланк Методички'!L122='Бланк Методички'!$Y$12,1,IF('Бланк Методички'!L122='Бланк Методички'!$Y$13,0,IF('Бланк Методички'!L122='Бланк Методички'!$Y$14,-1,IF('Бланк Методички'!L122='Бланк Методички'!$Y$15,-2)))))","v":false},{"$f":"IF('Бланк Методички'!L146='Бланк Методички'!$Y$11,2,IF('Бланк Методички'!L146='Бланк Методички'!$Y$12,1,IF('Бланк Методички'!L146='Бланк Методички'!$Y$13,0,IF('Бланк Методички'!L146='Бланк Методички'!$Y$14,-1,IF('Бланк Методички'!L146='Бланк Методички'!$Y$15,-2)))))","v":false},0,null,0,"Право"]
["Транспорт",{"$f":"IF('Бланк Методички'!L27='Бланк Методички'!$Y$11,2,IF('Бланк Методички'!L27='Бланк Методички'!$Y$12,1,IF('Бланк Методички'!L27='Бланк Методички'!$Y$13,0,IF('Бланк Методички'!L27='Бланк Методички'!$Y$14,-1,IF('Бланк Методички'!L27='Бланк Методички'!$Y$15,-2)))))","v":false},{"$f":"IF('Бланк Методички'!L51='Бланк Методички'!$Y$11,2,IF('Бланк Методички'!L51='Бланк Методички'!$Y$12,1,IF('Бланк Методички'!L51='Бланк Методички'!$Y$13,0,IF('Бланк Методички'!L51='Бланк Методички'!$Y$14,-1,IF('Бланк Методички'!L51='Бланк Методички'!$Y$15,-2)))))","v":false},{"$f":"IF('Бланк Методички'!L75='Бланк Методички'!$Y$11,2,IF('Бланк Методички'!L75='Бланк Методички'!$Y$12,1,IF('Бланк Методички'!L75='Бланк Методички'!$Y$13,0,IF('Бланк Методички'!L75='Бланк Методички'!$Y$14,-1,IF('Бланк Методички'!L75='Бланк Методички'!$Y$15,-2)))))","v":false},{"$f":"IF('Бланк Методички'!L99='Бланк Методички'!$Y$11,2,IF('Бланк Методички'!L99='Бланк Методички'!$Y$12,1,IF('Бланк Методички'!L99='Бланк Методички'!$Y$13,0,IF('Бланк Методички'!L99='Бланк Методички'!$Y$14,-1,IF('Бланк Методички'!L99='Бланк Методички'!$Y$15,-2)))))","v":false},{"$f":"IF('Бланк Методички'!L123='Бланк Методички'!$Y$11,2,IF('Бланк Методички'!L123='Бланк Методички'!$Y$12,1,IF('Бланк Методички'!L123='Бланк Методички'!$Y$13,0,IF('Бланк Методички'!L123='Бланк Методички'!$Y$14,-1,IF('Бланк Методички'!L123='Бланк Методички'!$Y$15,-2)))))","v":false},{"$f":"IF('Бланк Методички'!L147='Бланк Методички'!$Y$11,2,IF('Бланк Методички'!L147='Бланк Методички'!$Y$12,1,IF('Бланк Методички'!L147='Бланк Методички'!$Y$13,0,IF('Бланк Методички'!L147='Бланк Методички'!$Y$14,-1,IF('Бланк Методички'!L147='Бланк Методички'!$Y$15,-2)))))","v":false},0,null,0,"Транспорт"]
["Педагогика",{"$f":"IF('Бланк Методички'!L28='Бланк Методички'!$Y$11,2,IF('Бланк Методички'!L28='Бланк Методички'!$Y$12,1,IF('Бланк Методички'!L28='Бланк Методички'!$Y$13,0,IF('Бланк Методички'!L28='Бланк Методички'!$Y$14,-1,IF('Бланк Методички'!L28='Бланк Методички'!$Y$15,-2)))))","v":false},{"$f":"IF('Бланк Методички'!L52='Бланк Методички'!$Y$11,2,IF('Бланк Методички'!L52='Бланк Методички'!$Y$12,1,IF('Бланк Методички'!L52='Бланк Методички'!$Y$13,0,IF('Бланк Методички'!L52='Бланк Методички'!$Y$14,-1,IF('Бланк Методички'!L52='Бланк Методички'!$Y$15,-2)))))","v":false},{"$f":"IF('Бланк Методички'!L76='Бланк Методички'!$Y$11,2,IF('Бланк Методички'!L76='Бланк Методички'!$Y$12,1,IF('Бланк Методички'!L76='Бланк Методички'!$Y$13,0,IF('Бланк Методички'!L76='Бланк Методички'!$Y$14,-1,IF('Бланк Методички'!L76='Бланк Методички'!$Y$15,-2)))))","v":false},{"$f":"IF('Бланк Методички'!L100='Бланк Методички'!$Y$11,2,IF('Бланк Методички'!L100='Бланк Методички'!$Y$12,1,IF('Бланк Методички'!L100='Бланк Методички'!$Y$13,0,IF('Бланк Методички'!L100='Бланк Методички'!$Y$14,-1,IF('Бланк Методички'!L100='Бланк Методички'!$Y$15,-2)))))","v":false},{"$f":"IF('Бланк Методички'!L124='Бланк Методички'!$Y$11,2,IF('Бланк Методички'!L124='Бланк Методички'!$Y$12,1,IF('Бланк Методички'!L124='Бланк Методички'!$Y$13,0,IF('Бланк Методички'!L124='Бланк Методички'!$Y$14,-1,IF('Бланк Методички'!L124='Бланк Методички'!$Y$15,-2)))))","v":false},{"$f":"IF('Бланк Методички'!L148='Бланк Методички'!$Y$11,2,IF('Бланк Методички'!L148='Бланк Методички'!$Y$12,1,IF('Бланк Методички'!L148='Бланк Методички'!$Y$13,0,IF('Бланк Методички'!L148='Бланк Методички'!$Y$14,-1,IF('Бланк Методички'!L148='Бланк Методички'!$Y$15,-2)))))","v":false},0,null,0,"Педагогика"]
["Рабочие специальности",{"$f":"IF('Бланк Методички'!L29='Бланк Методички'!$Y$11,2,IF('Бланк Методички'!L29='Бланк Методички'!$Y$12,1,IF('Бланк Методички'!L29='Бланк Методички'!$Y$13,0,IF('Бланк Методички'!L29='Бланк Методички'!$Y$14,-1,IF('Бланк Методички'!L29='Бланк Методички'!$Y$15,-2)))))","v":false},{"$f":"IF('Бланк Методички'!L53='Бланк Методички'!$Y$11,2,IF('Бланк Методички'!L53='Бланк Методички'!$Y$12,1,IF('Бланк Методички'!L53='Бланк Методички'!$Y$13,0,IF('Бланк Методички'!L53='Бланк Методички'!$Y$14,-1,IF('Бланк Методички'!L53='Бланк Методички'!$Y$15,-2)))))","v":false},{"$f":"IF('Бланк Методички'!L77='Бланк Методички'!$Y$11,2,IF('Бланк Методички'!L77='Бланк Методички'!$Y$12,1,IF('Бланк Методички'!L77='Бланк Методички'!$Y$13,0,IF('Бланк Методички'!L77='Бланк Методички'!$Y$14,-1,IF('Бланк Методички'!L77='Бланк Методички'!$Y$15,-2)))))","v":false},{"$f":"IF('Бланк Методички'!L101='Бланк Методички'!$Y$11,2,IF('Бланк Методички'!L101='Бланк Методички'!$Y$12,1,IF('Бланк Методички'!L101='Бланк Методички'!$Y$13,0,IF('Бланк Методички'!L101='Бланк Методички'!$Y$14,-1,IF('Бланк Методички'!L101='Бланк Методички'!$Y$15,-2)))))","v":false},{"$f":"IF('Бланк Методички'!L125='Бланк Методички'!$Y$11,2,IF('Бланк Методички'!L125='Бланк Методички'!$Y$12,1,IF('Бланк Методички'!L125='Бланк Методички'!$Y$13,0,IF('Бланк Методички'!L125='Бланк Методички'!$Y$14,-1,IF('Бланк Методички'!L125='Бланк Методички'!$Y$15,-2)))))","v":false},{"$f":"IF('Бланк Методички'!L149='Бланк Методички'!$Y$11,2,IF('Бланк Методички'!L149='Бланк Методички'!$Y$12,1,IF('Бланк Методички'!L149='Бланк Методички'!$Y$13,0,IF('Бланк Методички'!L149='Бланк Методички'!$Y$14,-1,IF('Бланк Методички'!L149='Бланк Методички'!$Y$15,-2)))))","v":false},0,null,0,"Рабочие специальности"]
["Сфера обслуживания",{"$f":"IF('Бланк Методички'!L30='Бланк Методички'!$Y$11,2,IF('Бланк Методички'!L30='Бланк Методички'!$Y$12,1,IF('Бланк Методички'!L30='Бланк Методички'!$Y$13,0,IF('Бланк Методички'!L30='Бланк Методички'!$Y$14,-1,IF('Бланк Методички'!L30='Бланк Методички'!$Y$15,-2)))))","v":false},{"$f":"IF('Бланк Методички'!L54='Бланк Методички'!$Y$11,2,IF('Бланк Методички'!L54='Бланк Методички'!$Y$12,1,IF('Бланк Методички'!L54='Бланк Методички'!$Y$13,0,IF('Бланк Методички'!L54='Бланк Методички'!$Y$14,-1,IF('Бланк Методички'!L54='Бланк Методички'!$Y$15,-2)))))","v":false},{"$f":"IF('Бланк Методички'!L78='Бланк Методички'!$Y$11,2,IF('Бланк Методички'!L78='Бланк Методички'!$Y$12,1,IF('Бланк Методички'!L78='Бланк Методички'!$Y$13,0,IF('Бланк Методички'!L78='Бланк Методички'!$Y$14,-1,IF('Бланк Методички'!L78='Бланк Методички'!$Y$15,-2)))))","v":false},{"$f":"IF('Бланк Методички'!L102='Бланк Методички'!$Y$11,2,IF('Бланк Методички'!L102='Бланк Методички'!$Y$12,1,IF('Бланк Методички'!L102='Бланк Методички'!$Y$13,0,IF('Бланк Методички'!L102='Бланк Методички'!$Y$14,-1,IF('Бланк Методички'!L102='Бланк Методички'!$Y$15,-2)))))","v":false},{"$f":"IF('Бланк Методички'!L126='Бланк Методички'!$Y$11,2,IF('Бланк Методички'!L126='Бланк Методички'!$Y$12,1,IF('Бланк Методички'!L126='Бланк Методички'!$Y$13,0,IF('Бланк Методички'!L126='Бланк Методички'!$Y$14,-1,IF('Бланк Методички'!L126='Бланк Методички'!$Y$15,-2)))))","v":false},{"$f":"IF('Бланк Методички'!L150='Бланк Методички'!$Y$11,2,IF('Бланк Методички'!L150='Бланк Методички'!$Y$12,1,IF('Бланк Методички'!L150='Бланк Методички'!$Y$13,0,IF('Бланк Методички'!L150='Бланк Методички'!$Y$14,-1,IF('Бланк Методички'!L150='Бланк Методички'!$Y$15,-2)))))","v":false},0,null,0,"Сфера обслуживания"]
["Строительство",{"$f":"IF('Бланк Методички'!L31='Бланк Методички'!$Y$11,2,IF('Бланк Методички'!L31='Бланк Методички'!$Y$12,1,IF('Бланк Методички'!L31='Бланк Методички'!$Y$13,0,IF('Бланк Методички'!L31='Бланк Методички'!$Y$14,-1,IF('Бланк Методички'!L31='Бланк Методички'!$Y$15,-2)))))","v":false},{"$f":"IF('Бланк Методички'!L55='Бланк Методички'!$Y$11,2,IF('Бланк Методички'!L55='Бланк Методички'!$Y$12,1,IF('Бланк Методички'!L55='Бланк Методички'!$Y$13,0,IF('Бланк Методички'!L55='Бланк Методички'!$Y$14,-1,IF('Бланк Методички'!L55='Бланк Методички'!$Y$15,-2)))))","v":false},{"$f":"IF('Бланк Методички'!L79='Бланк Методички'!$Y$11,2,IF('Бланк Методички'!L79='Бланк Методички'!$Y$12,1,IF('Бланк Методички'!L79='Бланк Методички'!$Y$13,0,IF('Бланк Методички'!L79='Бланк Методички'!$Y$14,-1,IF('Бланк Методички'!L79='Бланк Методички'!$Y$15,-2)))))","v":false},{"$f":"IF('Бланк Методички'!L103='Бланк Методички'!$Y$11,2,IF('Бланк Методички'!L103='Бланк Методички'!$Y$12,1,IF('Бланк Методички'!L103='Бланк Методички'!$Y$13,0,IF('Бланк Методички'!L103='Бланк Методички'!$Y$14,-1,IF('Бланк Методички'!L103='Бланк Методички'!$Y$15,-2)))))","v":false},{"$f":"IF('Бланк Методички'!L127='Бланк Методички'!$Y$11,2,IF('Бланк Методички'!L127='Бланк Методички'!$Y$12,1,IF('Бланк Методички'!L127='Бланк Методички'!$Y$13,0,IF('Бланк Методички'!L127='Бланк Методички'!$Y$14,-1,IF('Бланк Методички'!L127='Бланк Методички'!$Y$15,-2)))))","v":false},{"$f":"IF('Бланк Методички'!L151='Бланк Методички'!$Y$11,2,IF('Бланк Методички'!L151='Бланк Методички'!$Y$12,1,IF('Бланк Методички'!L151='Бланк Методички'!$Y$13,0,IF('Бланк Методички'!L151='Бланк Методички'!$Y$14,-1,IF('Бланк Методички'!L151='Бланк Методички'!$Y$15,-2)))))","v":false},0,null,0,"Строительство"]
["Легкая промышленность",{"$f":"IF('Бланк Методички'!L32='Бланк Методички'!$Y$11,2,IF('Бланк Методички'!L32='Бланк Методички'!$Y$12,1,IF('Бланк Методички'!L32='Бланк Методички'!$Y$13,0,IF('Бланк Методички'!L32='Бланк Методички'!$Y$14,-1,IF('Бланк Методички'!L32='Бланк Методички'!$Y$15,-2)))))","v":false},{"$f":"IF('Бланк Методички'!L56='Бланк Методички'!$Y$11,2,IF('Бланк Методички'!L56='Бланк Методички'!$Y$12,1,IF('Бланк Методички'!L56='Бланк Методички'!$Y$13,0,IF('Бланк Методички'!L56='Бланк Методички'!$Y$14,-1,IF('Бланк Методички'!L56='Бланк Методички'!$Y$15,-2)))))","v":false},{"$f":"IF('Бланк Методички'!L80='Бланк Методички'!$Y$11,2,IF('Бланк Методички'!L80='Бланк Методички'!$Y$12,1,IF('Бланк Методички'!L80='Бланк Методички'!$Y$13,0,IF('Бланк Методички'!L80='Бланк Методички'!$Y$14,-1,IF('Бланк Методички'!L80='Бланк Методички'!$Y$15,-2)))))","v":false},{"$f":"IF('Бланк Методички'!L104='Бланк Методички'!$Y$11,2,IF('Бланк Методички'!L104='Бланк Методички'!$Y$12,1,IF('Бланк Методички'!L104='Бланк Методички'!$Y$13,0,IF('Бланк Методички'!L104='Бланк Методички'!$Y$14,-1,IF('Бланк Методички'!L104='Бланк Методички'!$Y$15,-2)))))","v":false},{"$f":"IF('Бланк Методички'!L128='Бланк Методички'!$Y$11,2,IF('Бланк Методички'!L128='Бланк Методички'!$Y$12,1,IF('Бланк Методички'!L128='Бланк Методички'!$Y$13,0,IF('Бланк Методички'!L128='Бланк Методички'!$Y$14,-1,IF('Бланк Методички'!L128='Бланк Методички'!$Y$15,-2)))))","v":false},{"$f":"IF('Бланк Методички'!L152='Бланк Методички'!$Y$11,2,IF('Бланк Методички'!L152='Бланк Методички'!$Y$12,1,IF('Бланк Методички'!L152='Бланк Методички'!$Y$13,0,IF('Бланк Методички'!L152='Бланк Методички'!$Y$14,-1,IF('Бланк Методички'!L152='Бланк Методички'!$Y$15,-2)))))","v":false},0,null,0,"Легкая промышленность"]
["Техника",{"$f":"IF('Бланк Методички'!L33='Бланк Методички'!$Y$11,2,IF('Бланк Методички'!L33='Бланк Методички'!$Y$12,1,IF('Бланк Методички'!L33='Бланк Методички'!$Y$13,0,IF('Бланк Методички'!L33='Бланк Методички'!$Y$14,-1,IF('Бланк Методички'!L33='Бланк Методички'!$Y$15,-2)))))","v":false},{"$f":"IF('Бланк Методички'!L57='Бланк Методички'!$Y$11,2,IF('Бланк Методички'!L57='Бланк Методички'!$Y$12,1,IF('Бланк Методички'!L57='Бланк Методички'!$Y$13,0,IF('Бланк Методички'!L57='Бланк Методички'!$Y$14,-1,IF('Бланк Методички'!L57='Бланк Методички'!$Y$15,-2)))))","v":false},{"$f":"IF('Бланк Методички'!L81='Бланк Методички'!$Y$11,2,IF('Бланк Методички'!L81='Бланк Методички'!$Y$12,1,IF('Бланк Методички'!L81='Бланк Методички'!$Y$13,0,IF('Бланк Методички'!L81='Бланк Методички'!$Y$14,-1,IF('Бланк Методички'!L81='Бланк Методички'!$Y$15,-2)))))","v":false},{"$f":"IF('Бланк Методички'!L105='Бланк Методички'!$Y$11,2,IF('Бланк Методички'!L105='Бланк Методички'!$Y$12,1,IF('Бланк Методички'!L105='Бланк Методички'!$Y$13,0,IF('Бланк Методички'!L105='Бланк Методички'!$Y$14,-1,IF('Бланк Методички'!L105='Бланк Методички'!$Y$15,-2)))))","v":false},{"$f":"IF('Бланк Методички'!L129='Бланк Методички'!$Y$11,2,IF('Бланк Методички'!L129='Бланк Методички'!$Y$12,1,IF('Бланк Методички'!L129='Бланк Методички'!$Y$13,0,IF('Бланк Методички'!L129='Бланк Методички'!$Y$14,-1,IF('Бланк Методички'!L129='Бланк Методички'!$Y$15,-2)))))","v":false},{"$f":"IF('Бланк Методички'!L153='Бланк Методички'!$Y$11,2,IF('Бланк Методички'!L153='Бланк Методички'!$Y$12,1,IF('Бланк Методички'!L153='Бланк Методички'!$Y$13,0,IF('Бланк Методички'!L153='Бланк Методички'!$Y$14,-1,IF('Бланк Методички'!L153='Бланк Методички'!$Y$15,-2)))))","v":false},0,null,0,"Техника"]
["Электротехника",{"$f":"IF('Бланк Методички'!L34='Бланк Методички'!$Y$11,2,IF('Бланк Методички'!L34='Бланк Методички'!$Y$12,1,IF('Бланк Методички'!L34='Бланк Методички'!$Y$13,0,IF('Бланк Методички'!L34='Бланк Методички'!$Y$14,-1,IF('Бланк Методички'!L34='Бланк Методички'!$Y$15,-2)))))","v":false},{"$f":"IF('Бланк Методички'!L58='Бланк Методички'!$Y$11,2,IF('Бланк Методички'!L58='Бланк Методички'!$Y$12,1,IF('Бланк Методички'!L58='Бланк Методички'!$Y$13,0,IF('Бланк Методички'!L58='Бланк Методички'!$Y$14,-1,IF('Бланк Методички'!L58='Бланк Методички'!$Y$15,-2)))))","v":false},{"$f":"IF('Бланк Методички'!L82='Бланк Методички'!$Y$11,2,IF('Бланк Методички'!L82='Бланк Методички'!$Y$12,1,IF('Бланк Методички'!L82='Бланк Методички'!$Y$13,0,IF('Бланк Методички'!L82='Бланк Методички'!$Y$14,-1,IF('Бланк Методички'!L82='Бланк Методички'!$Y$15,-2)))))","v":false},{"$f":"IF('Бланк Методички'!L106='Бланк Методички'!$Y$11,2,IF('Бланк Методички'!L106='Бланк Методички'!$Y$12,1,IF('Бланк Методички'!L106='Бланк Методички'!$Y$13,0,IF('Бланк Методички'!L106='Бланк Методички'!$Y$14,-1,IF('Бланк Методички'!L106='Бланк Методички'!$Y$15,-2)))))","v":false},{"$f":"IF('Бланк Методички'!L130='Бланк Методички'!$Y$11,2,IF('Бланк Методички'!L130='Бланк Методички'!$Y$12,1,IF('Бланк Методички'!L130='Бланк Методички'!$Y$13,0,IF('Бланк Методички'!L130='Бланк Методички'!$Y$14,-1,IF('Бланк Методички'!L130='Бланк Методички'!$Y$15,-2)))))","v":false},{"$f":"IF('Бланк Методички'!L154='Бланк Методички'!$Y$11,2,IF('Бланк Методички'!L154='Бланк Методички'!$Y$12,1,IF('Бланк Методички'!L154='Бланк Методички'!$Y$13,0,IF('Бланк Методички'!L154='Бланк Методички'!$Y$14,-1,IF('Бланк Методички'!L154='Бланк Методички'!$Y$15,-2)))))","v":false},0,null,0,"Электротехника"]

{"sheet":"Печать","index":2,"n_rows":17,"n_cols":8,"rows_kept":17,"cut":false,"hidden":false,"merged":[[9,2,9,3],[7,0,7,1],[16,0,16,1],[16,2,16,3],[16,4,16,5],[15,0,15,1],[15,2,15,3],[15,4,15,5],[0,0,0,8],[2,7,2,8],[3,7,3,8],[2,1,2,5],[3,1,3,5],[6,6,6,8],[7,6,7,8],[8,6,8,8],[9,6,9,8],[5,6,5,8],[14,0,14,1],[14,2,14,3],[14,4,14,5],[10,2,10,3],[10,4,10,5],[12,0,12,1],[12,2,12,3],[12,4,12,5],[5,0,5,1],[5,2,5,3],[5,4,5,5],[8,0,8,1],[8,2,8,3],[8,4,8,5],[7,4,7,5],[7,2,7,3],[6,0,6,1],[6,2,6,3],[6,4,6,5],[14,6,14,8],[15,6,15,8],[16,6,16,8],[9,0,9,1],[11,2,11,3],[9,4,9,5],[11,4,11,5],[13,4,13,5],[11,0,11,1],[13,0,13,1],[13,2,13,3],[11,6,11,8],[12,6,12,8],[13,6,13,8],[10,0,10,1],[10,6,10,8]]}
["Карта интересов (КИ-144)\n(А.Е. Голомшток. Модификация Е.И. Сибиль)"]
[]
["ФИО",{"$f":"PROPER('Бланк Методички'!D2)","v":""},null,null,null,null,"Класс",{"$f":"'Бланк Методички'!M2","v":0}]
["Возраст",{"$f":"CONCATENATE('Бланк Методички'!D3, \" лет\")","v":" лет"},null,null,null,null,"Дата",{"$f":"TODAY()","v":"2018-01-26"}]
[]
["Физика",null,"Математика",null,"Химия",null,"Астрономия"]
[{"$f":"'Обработка результатов'!H4","v":0},null,{"$f":"'Обработка результатов'!H5","v":0},null,{"$f":"'Обработка результатов'!H6","v":0},null,{"$f":"'Обработка результатов'!H7","v":0}]
["Биология",null,"Медицина",null,"Сельское хозяйство",null,"Лесное хозяйство"]
[{"$f":"'Обработка результатов'!H8","v":0},null,{"$f":"'Обработка результатов'!H9","v":0},null,{"$f":"'Обработка результатов'!H10","v":0},null,{"$f":"'Обработка результатов'!H11","v":0}]
["Филология",null,"Журналистика",null,"История",null,"Искусство"]
[{"$f":"'Обработка результатов'!H12","v":0},null,{"$f":"'Обработка результатов'!H13","v":0},null,{"$f":"'Обработка результатов'!H14","v":0},null,{"$f":"'Обработка результатов'!H15","v":0}]
["Геология",null,"География",null,"Общественная раб.",null,"Право"]
[{"$f":"'Обработка результатов'!H16","v":0},null,{"$f":"'Обработка результатов'!H17","v":0},null,{"$f":"'Обработка результатов'!H18","v":0},null,{"$f":"'Обработка результатов'!H19","v":0}]
["Транспорт",null,"Педагогика",null,"Рабочие специальности",null,"Сфера обслуживания"]
[{"$f":"'Обработка результатов'!H20","v":0},null,{"$f":"'Обработка результатов'!H21","v":0},null,{"$f":"'Обработка результатов'!H22","v":0},null,{"$f":"'Обработка результатов'!H23","v":0}]
["Строительство",null,"Легкая промышленность",null,"Техника",null,"Электротехника"]
[{"$f":"'Обработка результатов'!H24","v":0},null,{"$f":"'Обработка результатов'!H25","v":0},null,{"$f":"'Обработка результатов'!H26","v":0},null,{"$f":"'Обработка результатов'!H27","v":0}]